Cogmind - Beta 15 @@@ ROGUE MODE // 2025.10.06 @ 11:09:57 Player: shapeshifter Result: Destroyed by EP-1QE(R) with Subdweller Machine Gun Performance ------------- Evolutions (0) 0 Regions Visited (2) 400 Robots Destroyed (12) 60 Value Destroyed (343) 343 Prototype IDs (0) 0 Alien Tech Used (0) 0 Bonus (0) 0 TOTAL SCORE: 803 Bonus ------- None Cogmind --------- Core Integrity 0/250 Matter 279/300 Energy 94/100 System Corruption 0% Temperature Cool (0) Movement Treading (160) Location -10/Subcaves Parts ------- > --- POWER (1) -------- (None) > --- PROPULSION (2) --- Light Treads > --- UTILITY (2) ------ Medium Storage Unit > --- WEAPON (2) ------- Medium Laser Light Assault Rifle > --- INVENTORY (10) --- Ion Engine Compact Wheel Subdweller Monowheel Subdweller Monowheel Heat Sink Heat Sink Heat Sink Assault Rifle Peak State ------------ > --- POWER ------------ Ion Engine > --- PROPULSION ------- Light Treads Light Treads > --- UTILITY ---------- Medium Storage Unit Seismic Detector > --- WEAPON ----------- Medium Laser Light Assault Rifle > --- INVENTORY -------- Ion Engine Light Treads Compact Wheel Compact Wheel Heat Sink Heat Sink Heat Sink Medium Laser Assault Rifle Grenade Launcher [Rating: 8] Favorites ----------- Power Ion Engine Engine Ion Engine Propulsion Light Treads Treads Light Treads Utility Medium Storage Unit Device Seismic Detector Storage Medium Storage Unit Weapon Medium Laser Energy Gun Medium Laser Ballistic Gun Light Assault Rifle Launcher Grenade Launcher Build | -11 -10 -10 ------- Run | Yrd Mat Sub Slots Evolved . | . . . Power . | . . . Propulsion . | . . . Utility . | . . . Weapon . | . . . Parts Attached 11 | 7 1 3 Power 1 | 1 . . Engine 1 | 1 . . Core . | . . . Reactor . | . . . Propulsion 3 | 2 . 1 Treads 3 | 2 . 1 Leg . | . . . Wheel . | . . . Hover . | . . . Flight . | . . . Utility 3 | 2 1 . Device 1 | 1 . . Storage 2 | 1 1 . Processor . | . . . Hackware . | . . . Protection . | . . . Artifact . | . . . Weapon 4 | 2 . 2 Energy Gun 2 | 1 . 1 Energy Cannon . | . . . Ballistic Gun 1 | 1 . . Ballistic Cannon . | . . . Launcher 1 | . . 1 Special Weapon . | . . . Impact Weapon . | . . . Slashing Weapon . | . . . Piercing Weapon . | . . . Special Melee Weapon . | . . . Unidentified Prototypes . | . . . Parts Lost 6 | . . 6 Power 1 | . . 1 Propulsion 2 | . . 2 Utility 1 | . . 1 Weapon 2 | . . 2 Highest Loss Streak 6 | . . 6 To Critical Strikes . | . . . Average Backups 7 | 3 5 8 Power . | . 1 1 Propulsion 2 | 1 2 2 Utility 2 | . . 3 Weapon 1 | . 2 1 Tool/Special . | . . . Unused Backups 9 | . . 9 Power 1 | . . 1 Propulsion 4 | . . 4 Utility 3 | . . 3 Weapon 1 | . . 1 Tool/Special . | . . . Average Slot Usage (%) 71 | . 100 66 Engine 4 | . 14 2 Treads 18 | . 28 17 Device 4 | . 14 2 Storage 14 | . 14 14 Energy Gun 14 | . 14 14 Ballistic Gun 13 | . 14 13 Peak Build Rating 8 | 7 8 8 Average Rating 5 | 5 7 5 On Entrance 5 | . 7 8 Naked Turns . | . . . Heaviest Build 20 | 14 19 20 Greatest Support 40 | 40 40 40 Greatest Overweight (x) . | . . . Average Overweight (x) . | . . . Largest Inventory Capacity 10 | 8 10 10 Average Capacity 9 | 7 8 10 Most Carried 10 | 5 10 10 Average Carried 7 | 3 5 8 Final Capacity 10 | 8 10 10 Final Carried 10 | 4 10 8 Class Distribution -------------------- 100% | Mutant Dominant Class ---------------- Mutant | -10/Materials Mutant | -10/Subcaves Resources | -11 -10 -10 ----------- Run | Yrd Mat Sub Matter Collected 409 | 219 45 145 Remotely . | . . . Salvage Created 378 | 65 45 268 Parts 25 | 9 3 13 Haulers Intercepted 1 | . 1 . Recyclers Shooed . | . . . Parts Field Recycled . | . . . Retrieved Matter . | . . . Parts Self-Destructed . | . . . Prevented . | . . . Kills | -11 -10 -10 ------- Run | Yrd Mat Sub Combat Hostiles Destroyed 8 | . . 8 Guns 6 | . . 6 AOE 2 | . . 2 Classes Destroyed 3 | 1 1 1 Tunneler 3 | 3 . . Hauler 1 | . 1 . Subdweller 8 | . . 8 Best Kill Streak 3 | 3 1 3 Combat Bots Only 3 | . . 3 Max Kills in Single Turn 2 | 1 1 2 Gunslinging . | . . . Exploded 2 | . . 2 Melee . | . . . Uniques/NPCs Destroyed . | . . . Combat | -11 -10 -10 -------- Run | Yrd Mat Sub Hostile Shots Fired 63 | . . 63 Missed 22 | . . 22 Hits 41 | . . 41 Projectile 41 | . . 41 Damage Taken 1023 | . . 1023 Core 260 | . . 260 Absorbed by Shields . | . . . Core Remaining (%) 100 | 100 . . Volleys Fired 65 | 5 5 55 Largest 2 | 2 2 2 Hottest 70 | 70 70 70 Shots Fired 122 | 10 10 102 Gun 114 | 10 10 94 Cannon . | . . . Launcher 8 | . . 8 Special . | . . . Kinetic 57 | 5 5 47 Thermal 57 | 5 5 47 Explosive 8 | . . 8 Electromagnetic . | . . . Robot Hit Streak 16 | 6 4 16 Robot Miss Streak 3 | 1 2 3 Penetration Max . | . . . Secondary Targets . | . . . Shots Hit Robots 72 | 7 7 58 Core Hits 27 | 4 2 21 Critical Kills . | . . . Critical Parts Destroyed . | . . . Critical Strikes 2 | . 1 1 Burn 2 | . 1 1 Melee Attacks . | . . . Impact . | . . . Slashing . | . . . Piercing . | . . . Sneak Attacks . | . . . Combat Hostiles . | . . . Follow-up Attacks . | . . . Damage Inflicted 1163 | 99 74 990 Guns 713 | 99 74 540 Cannons . | . . . Explosions 450 | . . 450 Melee . | . . . Ramming . | . . . Kinetic 252 | 36 25 191 Thermal 461 | 63 49 349 Explosive 450 | . . 450 Electromagnetic . | . . . Impact . | . . . Slashing . | . . . Piercing . | . . . Highest Corruption . | . . . Average Corruption . | . . . Corruption Purged . | . . . Corruption Blocked . | . . . Overload Shots . | . . . Overflow Damage 16 | . . 16 Projectiles . | . . . Explosions 16 | . . 16 Melee . | . . . Knockbacks . | . . . Impact . | . . . Kinetic . | . . . Secondary . | . . . Self-Inflicted Damage 132 | . . 132 Shots 8 | . . 8 Rammed . | . . . Targets Rammed . | . . . Kicked . | . . . Crushed . | . . . Highest Temperature 70 | 50 70 1 Average Temperature 26 | 23 33 1 Received Heat Transfer 135 | . . 135 Siege Activations . | . . . Martial Activations . | . . . Shielding Activations . | . . . Robots Disrupted . | . . . Combat Hostiles . | . . . Robots Corrupted . | . . . Combat Hostiles . | . . . Parts Fried . | . . . Impact Corruptions . | . . . Robots Melted . | . . . Combat Hostiles . | . . . Parts Melted 2 | . 2 . Heat Transferred 1517 | 185 222 1110 Parts Sabotaged . | . . . Parts Stolen . | . . . Parts Stripped . | . . . Power Chain Reactions . | . . . Alert | -11 -10 -10 ------- Run | Yrd Mat Sub Maximum Alert Level . | . . . Low Security (%) 100 | 100 100 . Level 1 . | . . . Level 2 . | . . . Level 3 . | . . . Level 4 . | . . . Level 5 . | . . . High Security . | . . . Max Security . | . . . Peak Influence 15 | 15 7 . Initial . | . . . Average 1 | 1 . . Influence Increases 22 | 15 7 . Destroy 0b10 Robot/NC 20 | 15 5 . Destroy Leader 2 | . 2 . Influence Decreases 22 | 15 7 . Time Decay 22 | 15 7 . Squads Dispatched . | . . . Investigation . | . . . Extermination . | . . . Reinforcement . | . . . Assault . | . . . Garrison . | . . . Intercept . | . . . Searches Triggered . | . . . Construction Impeded . | . . . Haulers Reinforced . | . . . Active Scanning Responses . | . . . Cargo Convoy Interrupts . | . . . Stealth | -11 -10 -10 --------- Run | Yrd Mat Sub Distress Signals . | . . . Communications Jammed . | . . . Distress Signals . | . . . Times Spotted 11 | . . 11 Peak Tracking Total 3 | . . 3 Tactical Retreats . | . . . Traps | -11 -10 -10 ------- Run | Yrd Mat Sub Traps Triggered . | . . . Indirectly . | . . . Trap Hack Attempts . | . . . Triggered . | . . . Disarmed . | . . . Reprogrammed . | . . . Reused . | . . . Traps Extracted . | . . . Installed . | . . . Triggered . | . . . Machines | -11 -10 -10 ---------- Run | Yrd Mat Sub Machines Disabled . | . . . Max in Single Turn . | . . . Machines Repaired . | . . . Machines Dismantled . | . . . Machines Sabotaged . | . . . Overloaded Fab Kills . | . . . Hacking | -11 -10 -10 --------- Run | Yrd Mat Sub Machines Accessed 1 | . . 1 Terminals . | . . . Fabricators . | . . . Repair Stations . | . . . Recycling Units . | . . . Scanalyzers . | . . . Garrison Access . | . . . Total Hacks 4 | . . 4 Successful 4 | . . 4 Failed . | . . . Catastrophic . | . . . Database Lockouts . | . . . Manual . | . . . Terminals . | . . . Fabricators . | . . . Repair Stations . | . . . Recycling Units . | . . . Scanalyzers . | . . . Garrison Access . | . . . Terminal Hacks 4 | . . 4 Record 4 | . . 4 Fabricator Hacks . | . . . Repair Station Hacks . | . . . Recycling Unit Hacks . | . . . Scanalyzer . | . . . Garrison Access Hacks . | . . . Unauthorized Hacks . | . . . Terminals . | . . . Fabricators . | . . . Repair Stations . | . . . Recycling Units . | . . . Scanalyzers . | . . . Garrison Access . | . . . Data Cores Recovered . | . . . Used . | . . . Hacking Detections . | . . . Full Trace Events . | . . . Feedback Events . | . . . Feedback Blocked . | . . . Robot Schematics Acquired . | . . . Robots Built . | . . . Authchips . | . . . Time . | . . . Total Robot Build Rating . | . . . Part Schematics Acquired . | . . . Parts Built . | . . . Authchips . | . . . Time . | . . . Total Part Build Rating . | . . . Parts Repaired . | . . . Time . | . . . Parts Recycled . | . . . Recycled Matter . | . . . Retrieved Matter . | . . . Retrieved Components . | . . . Parts Scanalyzed . | . . . Part Schematics Acquired . | . . . Parts Damaged . | . . . Bothacking | -11 -10 -10 ------------ Run | Yrd Mat Sub Used RIF Installer . | . . . Robots Hacked . | . . . Non-combat . | . . . Combat . | . . . Robot Hacks Applied . | . . . Relay Couplers Released . | . . . Fabnet Peak Effective % . | . . . Robots Rewired . | . . . Allies Hacked . | . . . Hacks Repelled . | . . . Allies | -11 -10 -10 -------- Run | Yrd Mat Sub Total Allies . | . . . Largest Group . | . . . Highest-Rated Group . | . . . Highest-Rated Ally . | . . . Total Orders . | . . . Ally Attacks . | . . . Total Damage . | . . . Kills . | . . . Allies Corrupted . | . . . Allies Melted . | . . . Intel | -11 -10 -10 ------- Run | Yrd Mat Sub Active Infowar (turns) 327 | 20 142 165 Seismic 327 | 20 142 165 Robot Analysis Total . | . . . Derelict Logs Recovered . | . . . Drone Launches . | . . . Drone Recoveries . | . . . Exploration | -11 -10 -10 ------------- Run | Yrd Mat Sub Turns Passed 1153 | 155 142 856 Spaces Moved 598 | 82 76 440 Core 12 | 12 . . Treads 586 | 70 76 440 Legs . | . . . Wheels . | . . . Hover . | . . . Flight . | . . . Fastest Speed 50 | 50 160 160 Average Speed 157 | 143 160 160 Slowest Speed 160 | 160 160 160 Overloaded Moves . | . . . Propulsion Burnouts . | . . . Robots Hopped . | . . . Potential Cave-ins . | . . . Cave-ins Triggered . | . . . Exploration Rate (%) 14 | 5 10 29 Regions Visited 2 Branch Regions 1 Pre-discovered Areas 2 | . . 2 Known Exits Taken . | . . . Unknown Exits Taken 2 | 1 1 . Scrap Searched . | . . . Spaces Dug . | . . . Terrain Destroyed 29 | . . 29 Melee . | . . . Projectile . | . . . AOE 29 | . . 29 Terrain Rammed . | . . . Walls Destroyed . | . . . Machines Disabled . | . . . Actions | -11 -10 -10 --------- Run | Yrd Mat Sub Total 700 | 110 88 502 Wait 6 | 6 . . Move 596 | 81 75 440 Hop . | . . . Pick Up 19 | 11 6 2 Fast Attach . | . . . Attach 10 | 7 . 3 Detach . | . . . Swap 2 | . 1 1 Drop 2 | . 1 1 Fire 65 | 5 5 55 Melee . | . . . Ram . | . . . Kick . | . . . Crush . | . . . Escape Stasis . | . . . Rewire . | . . . Trap . | . . . Miscellaneous . | . . . Route ------- -11/Scrapyard -10/Materials -10/Subcaves History --------- Turn | Location | Event 8 | -11/Scrapyard | Discovered new exit (range 15) 156 | -11/Scrapyard | Entered Materials 244 | -10/Materials | Discovered new exit (range 10) 298 | -10/Materials | Entered Subcaves 309 | -10/Subcaves | Build established: Mutant 315 | -10/Subcaves | Learned location of Zion (-7) 315 | -10/Subcaves | Met a Zionite searching for "candidates" 437 | -10/Subcaves | Curiously followed by a Cobbler waking with a query about "LVR3C" 515 | -10/Subcaves | Lost 6 parts (1p2n1u2w) 524 | -10/Subcaves | Core integrity fell below 50% 719 | -10/Subcaves | Visited Clippyterm 724 | -10/Subcaves | Learned location of Section 7 (-2) 724 | -10/Subcaves | Learned Research machine intel 918 | -10/Subcaves | Core integrity fell below 20% 1137 | -10/Subcaves | Disturbed a concealed Subdweller 1154 | -10/Subcaves | Destroyed by EP-1QE(R) with Subdweller Machine Gun Last Messages --------------- access to useful relevant data. Data stored: Research machine intel. >>Record "Botnets" It looks like you seek to become a more effective hacker when it comes to the important hacks, and I heartily recommend installing Trojan(Botnet) on at least one or two Terminals to improve your odds of success elsewhere. 00911_ E2-O3E(R) suffers critical hit (Burn). 00934_ 1G-RB2(O) collects matter. 00934_ E2-O3E(R) affixes Scrap Shield Fragment to Scrap Shield. 00941_ Z0-8EA(R) destroyed. 00948_ Acquired 24 matter. 01019_ 1G-RB2(O) collects matter. 01056_ Subatomizers dissect the Sub. Power Source. 01064_ 1G-RB2(O) collects matter. 01066_ Subatomizers dissect the Sub. Power Source. 01077_ 1G-RB2(O) puts together Sub. Laser. 01088_ 1G-RB2(O) collects matter. 01137_ QF-TYE(R) angrily emerges from the Twisted Machinery. 01150_ QF-TYE(R) destroyed. Map ----- +----------------------------------------------------+ | ?????????????????????????????????????????????????? | | ?????????????????????????????????????????????????? | | ?????????????????????????????????????????????????? | | ?????????????????????????????????????????????????? | | ?????????????????????????????????????????????????? | | ?????????????????????????????????????????????????? | | ????????????????????????????# ???????????????????? | | ???????????????????????????## ???????????????????? | | ???????????????????????????# ??????????????????? | | ???????????????????????????? ??????????????????? | | ???????????????????????????? ? ???????????????? | | ????????????????????????????# ? ???##??????????? | | ????????????????????????????# ? ?? #??????????? | | ????????????????????????????? # ??? ##?????????? | | ????????????????????????????? ?? #?????????? | | ?????????????????????????????? #?? #?????????? | | ?????????????????????????????? #?# #??????????? | | ?????????????????????????????## ## #???????????? | | ????????????????????????????## #????????????? | | ???????????????????????????## #????????????? | | ???????????????????????????# #?????????????? | | ???????????????????????????# # ###?????????????? | | ??????????????????????????## # ##????????????### | | ????????????????????##???## # #?############ | | ????????????????????#<& ##R ### ## # ## | | ??????????????????????#=%@R # | | ??????????????????????##<#< ### | | ???????????????????????### #?# ### # # ## | | ????????????????????????? # ###?######## | | ????????????????????????#### ##??????????### | | ???????????????????????????# ## #?????????????# | | ??????????????????????????# #####????????????# | | ?????????????????????????# "#????????????????## # | | ?????????????????????????# #??????????????????### | | ?????????????????????????###?????????????????????? | | ?????????????????????????????????????????????????? | | ?????????????????????????????????????????????????? | | ?????????????????????????????????????????????????? | | ?????????????????????????????????????????????????? | | ?????????????????????????????????????????????????? | | ?????????????????????????????????????????????????? | | ?????????????????????????????????????????????????? | | ?????????????????????????????????????????????????? | | ?????????????????????????????????????????????????? | | ?????????????????????????????????????????????????? | | ?????????????????????????????????????????????????? | | ?????????????????????????????????????????????????? | | ?????????????????????????????????????????????????? | | ?????????????????????????????????????????????????? | | ?????????????????????????????????????????????????? | +----------------------------------------------------+ Best States ------------- Heat Dissipation 25 Energy Generation 10 Energy Capacity 250 Matter Stores 300 Matter Capacity 300 Sight Range 16 Terrain Scan Density 10 Evasion (%) 50 Recoil Reduction 2 Item Schematics ----------------- None Robot Schematics ------------------ None Fabricated ------------ Nothing Repaired ---------- Nothing Alien Tech Used ----------------- None Achievements -------------- None Challenges ------------ None Game ------ Seed RestorationContainmentRail Manual? 0 Play Time 00:05:57 Cumulative 359.7 hours Start 2025.10.06 @ 11:03:23 End 2025.10.06 @ 11:09:57 Sessions 2 Manual Loads 0 Difficulty Rogue Special Mode None Game No. 472 Rogue 472 Adventurer 0 Explorer 0 Win Type - Total 11 Types 6/0/1/2/1/0/1/0/0/0 Lore% 87 Gallery% 83 Achievement% 70 Wizard Run 0 Options --------- Layout 0 ASCII 0 Keyboard 0 Movement Mouse Keybinds 0 Fullscreen 1 Font 18/X11 Map View 76x50 Zoom Use 0% Tactical HUD 1 Map Filters NONE Filters NONE Steam 1 RUN: e94208fb-c2d1-4b16-b39f-6150b92a0ebc